bitfinex/quotes_SOLUSD_20220210
["timestamp","ask_amount","ask_price","bid_price","bid_amount"]
[1644503071621,1.27064036,107.35,107.26,13.9768]
[1644503071823,1.27064036,107.37,107.27,11.25]
[1644503072119,1.27064036,107.38,107.28,4.658]
[1644503072318,1.27064036,107.4,107.28,0.25]
[1644503072518,42.62586537,107.39,107.29,41.54200546]
[1644503072718,47.28386537,107.39,107.29,41.54200546]
[1644503072921,1.27064036,107.37,107.29,41.54200546]
[1644503073122,6.39649281,107.39,107.29,41.54200546]
[1644503073419,0.46785245,107.39,107.29,41.54200546]
[1644503073620,4.658,107.38,107.29,41.54200546]
[1644503074021,37.65436975,107.37,107.29,41.54200546]
[1644503074220,4.91761487,107.35,107.29,41.54200546]
[1644503074422,4.91761487,107.35,107.25,13.9785]
[1644503074624,4.91761487,107.35,107.22,11.25]
[1644503074823,4.91761487,107.35,107.2,4.658]
[1644503074824,4.66,107.34,107.2,4.658]
[1644503075224,13.9881,107.31,107.2,4.658]
[1644503075426,45.63301135,107.31,107.21,35.36599166]
[1644503075824,4.66,107.3,107.15,1.79036516]
[1644503076024,18.14122154,107.3,107.14,4.66]
[1644503076223,2.23122154,107.29,107.14,6.0]
[1644503076426,13.9938,107.27,107.13,13.9919]
[1644503076624,4.664,107.26,107.13,13.9919]
[1644503076824,10.92707327,107.25,107.1,41.96779455]
[1644503077024,4.665,107.24,107.1,4.665]
[1644503077225,11.25,107.23,107.05,4.665]
[1644503077425,4.666,107.22,107.05,4.665]
[1644503077627,14.0013,107.21,107.07,15.78557326]
[1644503077824,14.0013,107.21,107.08,4.666]
[1644503078052,57.9275,107.22,107.08,4.666]
[1644503078053,30.61788642,107.2,107.09,44.41792591]
[1644503078249,11.9540982,107.18,107.09,44.41792591]
[1644503078650,4.667,107.21,107.09,44.41792591]
[1644503078850,57.9275,107.22,107.09,44.41792591]
[1644503079049,14.0027,107.2,107.09,44.41792591]
[1644503079452,4.166,107.19,107.03,20.48298176]
[1644503079652,57.9368,107.19,107.04,6.45147326]
[1644503080051,14.0061,107.17,107.04,4.668]
[1644503080257,7.52610585,107.23,107.05,111.34045502]
[1644503080452,4.668,107.25,107.06,11.25]
[1644503080657,11.25,107.24,107.07,93.74]
[1644503080853,46.6697,107.23,107.07,19.28347326]
[1644503081052,4.666,107.22,107.07,35.10045502]
[1644503081253,46.6697,107.23,107.07,35.10045502]
[1644503081455,31.53488612,107.22,107.08,41.64708232]
[1644503081654,14.0006,107.21,107.08,41.64708232]
[1644503081853,14.0006,107.21,107.08,47.64708232]
[1644503081854,11.0370985,107.19,107.08,47.64708232]
[1644503082554,11.0370985,107.19,107.08,41.64708232]
[1644503082752,4.667,107.18,107.04,4.668]
[1644503082953,51.3599,107.18,107.03,4.668]
[1644503083162,11.25,107.17,107.01,4.668]
[1644503083355,4.668,107.16,107.01,4.668]
[1644503083554,15.918,107.17,107.01,4.668]
[1644503083754,31.53488612,107.16,107.03,41.4136832]
[1644503084257,25.2579,107.15,107.03,4.668]
[1644503084454,29.9259,107.15,107.0,1.78347326]
[1644503084655,29.9259,107.15,106.99,4.668]
[1644503084855,8.50832807,107.14,106.98,4.668]
[1644503085054,14.0158,107.1,106.99,36.19176917]
[1644503085457,8.50832807,107.17,107.0,15.8055365]
[1644503085656,0.02997307,107.19,107.0,27.0555365]
[1644503085858,0.02997307,107.19,107.01,31.62251826]
[1644503086057,0.02997307,107.19,107.02,15.918]
[1644503086258,36.15974783,107.19,107.03,48.52144876]
[1644503086462,36.15974783,107.19,107.05,37.40850502]
[1644503086661,36.15974783,107.19,107.07,37.02428303]
[1644503086858,36.15974783,107.19,107.07,48.52428303]
[1644503087558,36.12977476,107.19,107.07,48.52428303]
[1644503087757,50.13317476,107.19,107.09,35.38482459]
[1644503088158,50.13317476,107.19,107.09,37.58242459]
[1644503088360,52.3643963,107.19,107.09,2.1976]
[1644503089362,14.0078,107.16,107.09,2.1976]
[1644503089560,14.0078,107.16,107.1,39.67074968]
[1644503089761,0.02997307,107.19,107.1,0.25]
[1644503089961,0.02997307,107.2,107.1,0.25]
[1644503090262,4.666,107.2,107.09,2.4476]
[1644503090463,46.71067307,107.21,107.09,2.4476]
[1644503090665,37.59193384,107.2,107.1,38.9994068]
[1644503090863,42.25793384,107.2,107.09,2.4476]
[1644503091662,58.49065538,107.2,107.09,2.1976]
[1644503091864,69.74065538,107.2,107.09,2.1976]
[1644503092564,67.50943384,107.2,107.09,2.1976]
[1644503092964,14.0072,107.16,107.09,2.1976]
[1644503093164,31.39799879,107.15,107.09,2.1976]
[1644503093765,31.39799879,107.15,107.09,2.4476]
[1644503094171,46.0,107.14,107.04,11.25]
[1644503094371,8.97638583,107.13,106.99,46.6958]
[1644503094573,4.67,107.12,106.98,1.31775696]
[1644503094774,15.92,107.12,106.97,1.31775696]
[1644503094973,2.23122154,107.11,106.94,15.20948075]
[1644503095173,11.25,107.1,106.94,11.25]
[1644503095469,14.0182,107.07,106.95,49.38017122]
[1644503095670,10.2788267,107.06,106.95,49.38017122]
[1644503095871,10.2788267,107.06,106.95,35.36207122]
[1644503096268,4.672,107.09,106.95,35.36207122]
[1644503096468,11.25,107.09,106.95,35.36207122]
[1644503097369,0.45167979,107.06,106.95,35.36207122]
[1644503097569,39.420609,107.04,106.95,35.36207122]
[1644503098169,4.672,107.05,106.95,35.36207122]
[1644503098370,11.25,107.05,106.95,35.36207122]
[1644503098971,14.022,107.04,106.95,35.36207122]
[1644503099171,51.67700168,107.04,106.95,35.36207122]
[1644503099572,51.67700168,107.04,106.9,18.6968]
[1644503099773,51.67700168,107.04,106.87,6.01575696]
[1644503099774,11.25,107.03,106.87,6.01575696]
[1644503099975,14.0301,106.98,106.87,4.698]
[1644503100174,14.0301,106.98,106.87,0.024]
[1644503100378,14.0301,106.98,106.85,0.024]
[1644503100579,25.2801,106.98,106.87,37.79200841]
[1644503100877,25.2801,106.98,106.87,37.81600841]
[1644503101181,14.0271,107.0,106.88,4.676]
[1644503101374,4.675,107.09,106.88,4.676]
[1644503101573,11.25,107.08,106.88,48.6524637]
[1644503101781,46.01233534,107.08,106.89,162.88421827]
[1644503101976,46.01233534,107.08,106.91,41.31923997]
[1644503102175,5.61204928,107.06,106.93,47.87864736]
[1644503102379,5.61204928,107.06,106.93,48.12864736]
[1644503102575,11.25,107.08,106.94,4.673]
[1644503102776,11.25,107.08,106.94,4.923]
[1644503102976,4.673,107.1,106.94,30.1924]
[1644503103176,11.25,107.12,106.94,36.1924]
[1644503103376,4.671,107.12,106.95,114.3]
[1644503103584,34.10383802,107.15,106.96,157.02063581]
[1644503103779,48.46123802,107.15,106.96,176.51746791]
[1644503103976,2.23122154,107.15,106.96,176.51746791]
[1644503104177,15.921,107.16,106.98,93.74]
[1644503104393,14.0091,107.14,107.0,14.0109]
[1644503104577,14.0091,107.14,107.01,4.668]
[1644503104777,22.33699817,107.18,107.02,11.25]
[1644503104977,35.01911821,107.17,107.02,59.63000024]
[1644503105177,35.01911821,107.17,107.02,65.88000024]
[1644503105378,16.23772154,107.16,107.04,14.0071]
[1644503105577,16.23772154,107.16,107.02,65.88000024]
[1644503105578,10.02326641,107.15,107.02,70.54800024]
[1644503105779,4.668,107.14,107.02,65.88000024]
[1644503105979,30.35111821,107.13,107.02,65.88000024]
[1644503106382,32.58233975,107.13,107.02,65.88000024]
[1644503106579,30.35111821,107.13,107.02,65.88000024]
[1644503106980,4.668,107.15,107.02,65.88000024]
[1644503107179,11.25,107.17,107.03,4.668]
[1644503107180,46.6927,107.17,107.03,4.668]
[1644503107381,17.18864036,107.21,107.04,11.25]
[1644503107581,1.27064036,107.23,107.05,4.667]
[1644503107782,1.27064036,107.23,107.06,151.82]
[1644503107984,0.03050848,107.2,107.08,1.31775696]
[1644503108182,0.03050848,107.22,107.09,73.80541303]
[1644503108481,0.03050848,107.2,107.09,86.51561434]
[1644503108683,0.03050848,107.22,107.1,1.79420131]
[1644503108884,0.03050848,107.22,107.11,49.91476655]
[1644503109081,34.6474777,107.23,107.11,49.91476655]
[1644503109284,0.03050848,107.22,107.11,56.16476655]
[1644503109482,34.6474777,107.23,107.11,38.91476655]
[1644503109683,5.7574154,107.21,107.11,0.25]
[1644503109884,5.7574154,107.21,107.08,11.25]
[1644503110086,4.666,107.2,107.05,57.9195]
[1644503110284,0.03050848,107.21,107.06,4.667]
[1644503110485,0.03050848,107.22,107.08,14.0005]
[1644503110684,0.03050848,107.2,107.09,15.916]
[1644503110883,131.0,107.2,107.04,1.31775696]
[1644503111090,0.76221726,107.15,107.0,4.666]
[1644503111284,18.41217109,107.14,107.0,4.666]
[1644503111589,29.06905948,107.14,107.0,18.677]
[1644503111883,4.668,107.14,107.0,18.677]
[1644503112186,0.03050848,107.2,107.01,93.74]
[1644503112482,0.03050848,107.22,107.02,12.56775696]
[1644503112683,0.03050848,107.2,107.04,41.97814485]
[1644503112883,0.03050848,107.21,107.06,14.0006]
[1644503113087,0.03050848,107.22,107.07,11.25]
[1644503113286,0.03050848,107.2,107.08,11.25]
[1644503113483,0.03050848,107.21,107.09,4.666]
[1644503113684,24.56283219,107.23,107.08,4.666]
[1644503113884,0.03050848,107.2,107.09,44.98804339]
[1644503114084,24.5201762,107.22,107.09,44.98804339]
[1644503114291,22.65468079,107.22,107.09,44.98804339]
[1644503114686,14.0012,107.21,107.09,44.98804339]
[1644503114886,0.03050848,107.22,107.09,59.23764339]
[1644503115086,4.69650848,107.24,107.09,65.23764339]
[1644503115289,0.03050848,107.22,107.09,65.23764339]
[1644503115487,26.86926455,107.23,107.09,65.23764339]
[1644503115687,0.03050848,107.22,107.09,65.23764339]
[1644503115888,2.23122154,107.21,107.09,65.23764339]
[1644503116086,0.03050848,107.22,107.09,65.23764339]
[1644503116287,0.03050848,107.23,107.09,44.98804339]
[1644503116487,14.59122032,107.22,107.09,44.98804339]
[1644503116687,2.23122154,107.21,107.09,44.98804339]
[1644503116890,21.17622032,107.22,107.09,44.98804339]
[1644503117088,14.02870848,107.22,107.09,44.98804339]
[1644503117291,0.03050848,107.22,107.1,4.666]
[1644503117588,2.53949381,107.31,107.1,4.666]
[1644503117589,11.25,107.29,107.13,13.9926]
[1644503117790,4.665,107.3,107.13,13.9926]
[1644503117791,1.27064036,107.31,107.14,15.913]
[1644503118090,14.7518619,107.35,107.14,109.653]
[1644503118291,13.9829,107.35,107.18,35.63388931]
[1644503118491,1.27064036,107.37,107.19,123.6353]
[1644503118693,3.96971435,107.39,107.19,133.5343]
[1644503118890,4.66,107.38,107.19,139.7843]
[1644503119091,12.52064036,107.37,107.19,13.9853]
[1644503119312,1.27064036,107.34,107.18,35.63388931]
[1644503119492,15.91,107.33,107.18,35.63388931]
[1644503119688,4.63600242,107.32,107.18,35.63388931]
[1644503119892,16.68264036,107.31,107.18,35.63388931]
[1644503120190,23.09457977,107.3,107.18,35.63388931]
[1644503120389,13.994,107.27,107.18,35.63388931]
[1644503120593,8.84900242,107.26,107.18,35.63388931]
[1644503120791,4.18600242,107.26,107.13,4.662]
[1644503120995,2.23122154,107.25,107.13,4.662]
[1644503121193,4.664,107.24,107.13,4.662]
[1644503121492,17.64522154,107.24,107.09,13.9974]
[1644503121691,23.09457977,107.23,107.1,41.04795275]
[1644503121893,11.25,107.22,107.05,0.5]
[1644503122098,34.49605151,107.22,107.02,0.5001]
[1644503122392,11.87113838,107.21,107.0,11.7502]
[1644503122690,15.918,107.2,107.0,11.7502]
[1644503122892,14.0076,107.17,107.01,45.16525061]
[1644503123091,39.01257977,107.16,107.01,45.16525061]
[1644503123293,56.65374964,107.16,107.01,45.16525061]
[1644503123491,16.34039454,107.15,107.01,45.16525061]
[1644503123692,15.43600242,107.14,107.01,45.16525061]
[1644503123892,22.09346521,107.12,107.01,45.16525061]
[1644503124092,11.25,107.11,107.01,45.16525061]
[1644503124294,11.25,107.11,107.01,45.41525061]
[1644503124494,4.668,107.15,107.01,45.41525061]
[1644503124696,11.25,107.15,107.02,4.668]
[1644503124893,11.25,107.15,107.02,4.918]
[1644503125093,11.25,107.15,107.02,10.918]
[1644503125294,11.25,107.15,107.03,48.02185107]
[1644503125496,1.47550033,107.14,107.03,48.02185107]
[1644503125695,11.25,107.13,107.03,48.02185107]
[1644503125896,25.33659402,107.12,107.03,48.02185107]
[1644503126098,41.25459402,107.12,107.03,48.02185107]
[1644503126296,36.58659402,107.12,107.03,48.02185107]
[1644503127596,50.59919402,107.12,107.03,48.02185107]
[1644503127796,50.59919402,107.12,107.03,48.27185107]
[1644503128200,50.59919402,107.12,107.02,4.668]
[1644503128404,46.24841556,107.12,106.92,2.64172379]
[1644503128601,46.24841556,107.12,106.93,4.672]
[1644503128800,46.24841556,107.12,106.93,14.0189]
[1644503129002,11.25,107.11,106.93,14.0189]
[1644503129204,14.0208,107.06,106.94,41.38952929]
[1644503129601,7.54232987,107.05,106.94,41.38952929]
[1644503129803,14.0208,107.06,106.94,41.38952929]
[1644503130300,14.0208,107.06,106.94,47.63952929]
[1644503130704,38.44706131,107.06,106.94,47.38952929]
[1644503130905,11.25,107.07,106.94,61.40752929]
[1644503132204,11.25,107.07,106.95,4.672]
[1644503132407,14.0149,107.1,106.97,14.0146]
[1644503132604,11.25,107.1,106.98,4.671]
[1644503132803,11.25,107.1,106.98,10.921]
[1644503133204,11.25,107.1,106.99,44.94830029]
[1644503133405,11.25,107.1,106.99,45.19830029]
[1644503133605,11.25,107.1,106.99,51.19830029]
[1644503133806,11.25,107.1,106.99,65.21050029]
[1644503134107,11.25,107.14,107.0,1.76376154]
[1644503134324,46.6971,107.17,107.01,4.668]
[1644503134525,57.9471,107.17,107.02,37.32578468]
[1644503134726,77.62629599,107.17,107.04,46.99402706]
[1644503135125,14.0092,107.15,107.04,47.24402706]
[1644503135328,11.28075683,107.19,107.05,6.43176154]
[1644503135526,0.03075683,107.19,107.05,6.43176154]
[1644503135728,11.25,107.21,107.05,8.01376154]
[1644503135927,0.03075683,107.2,107.05,8.01376154]
[1644503136127,4.667,107.19,107.06,42.85624904]
[1644503136328,4.667,107.19,107.06,49.10624904]
[1644503136528,4.667,107.19,107.07,14.0018]
[1644503136729,0.52302957,107.19,107.08,34.44205479]
[1644503137028,4.69775683,107.2,107.08,34.44205479]
[1644503137228,11.28075683,107.21,107.08,34.69205479]
[1644503137431,11.28075683,107.21,107.08,56.57485479]
[1644503137629,11.28075683,107.21,107.09,4.666]
[1644503137829,11.28075683,107.21,107.09,4.916]
[1644503138030,32.85163139,107.21,107.1,48.08497332]
[1644503138230,32.82087456,107.21,107.1,48.33497332]
[1644503138831,11.25,107.21,107.1,48.33497332]
[1644503139031,11.25,107.21,107.1,48.08497332]
[1644503139232,6.89722154,107.2,107.08,7.883]
[1644503139437,11.25,107.19,107.08,7.883]
[1644503139633,4.667,107.18,107.08,7.883]
[1644503139835,11.25,107.17,107.08,7.883]
[1644503140235,26.5089978,107.16,107.09,42.67304964]
[1644503140536,51.7660978,107.16,107.08,7.883]
[1644503140735,4.167,107.15,107.08,7.883]
[1644503140934,11.25,107.14,107.08,7.883]
[1644503141136,4.668,107.13,107.08,7.883]
[1644503141336,11.25,107.12,107.08,7.883]
[1644503141537,10.75,107.12,107.08,7.883]
[1644503142539,10.25,107.12,107.08,7.883]
[1644503142739,14.0129,107.11,107.08,7.883]
[1644503142946,25.2629,107.11,107.08,7.883]
[1644503143141,24.7629,107.11,107.08,7.883]
[1644503143842,14.0103,107.13,107.08,56.08684298]
[1644503144042,11.25,107.14,107.08,56.08684298]
[1644503144244,15.917,107.15,107.08,7.883]
[1644503144442,11.25,107.15,107.08,7.883]
[1644503144644,4.667,107.14,107.08,7.883]
[1644503144845,11.25,107.13,107.08,7.883]
[1644503145247,24.53397936,107.12,107.08,7.883]
[1644503145444,35.78397936,107.12,107.08,7.883]
[1644503145846,11.25,107.12,107.08,7.883]
[1644503146248,4.668,107.15,107.08,7.883]
[1644503146445,14.0068,107.16,107.08,7.883]
[1644503146945,0.03075683,107.2,107.09,48.39680158]
[1644503147145,2.71833103,107.2,107.09,48.39680158]
[1644503147745,2.71833103,107.2,107.09,48.64680158]
[1644503147946,14.0009,107.2,107.09,48.64680158]
[1644503148147,14.0009,107.2,107.1,4.666]
[1644503148346,0.03075683,107.21,107.1,4.916]
[1644503148546,0.03075683,107.22,107.1,4.916]
[1644503148746,0.03075683,107.22,107.1,10.916]
[1644503148948,11.28075683,107.25,107.11,37.16782951]
[1644503149147,0.03075683,107.22,107.13,13.9948]
[1644503149351,14.02615683,107.24,107.14,43.17962941]
[1644503149548,13.9954,107.24,107.14,43.17962941]
[1644503149748,11.28075683,107.25,107.14,43.42962941]
[1644503149952,0.03075683,107.26,107.14,45.19328918]
[1644503150152,0.03075683,107.26,107.15,4.663]
[1644503150348,0.03075683,107.28,107.16,47.25447338]
[1644503150549,0.03075683,107.29,107.17,4.662]
[1644503150749,0.03075683,107.28,107.17,12.67565977]
[1644503150949,0.03075683,107.29,107.18,11.25]
[1644503151151,4.69275683,107.34,107.18,27.00045977]
[1644503151350,2.23122154,107.31,107.18,0.25]
[1644503151550,37.7197259,107.3,107.18,0.25]
[1644503151751,4.662,107.29,107.18,0.25]
[1644503151950,6.89322154,107.29,107.18,0.25]
[1644503152450,6.89322154,107.29,107.16,53.50447338]
[1644503152652,30.8307524,107.29,107.16,47.50447338]
[1644503152850,13.9903,107.28,107.18,34.29271846]
[1644503153250,11.28075683,107.3,107.18,34.54271846]
[1644503153851,11.28075683,107.3,107.18,48.53131846]
[1644503154050,11.28075683,107.3,107.18,54.53131846]
[1644503154256,0.03075683,107.3,107.18,54.53131846]
[1644503154452,0.03075683,107.31,107.18,54.53131846]
[1644503154654,0.03075683,107.3,107.19,4.662]
[1644503154856,0.03075683,107.31,107.19,10.912]
[1644503155054,4.69275683,107.35,107.19,10.912]
[1644503155256,0.03075683,107.31,107.2,34.44530465]
[1644503155455,25.82941478,107.34,107.2,34.44530465]
[1644503155656,0.03075683,107.33,107.2,34.44530465]
[1644503155854,2.26197837,107.33,107.2,34.69530465]
[1644503156058,1.48192424,107.32,107.2,34.69530465]
[1644503156256,15.91,107.31,107.2,34.69530465]
[1644503156456,20.00784367,107.3,107.2,34.69530465]
[1644503156655,4.662,107.29,107.2,34.69530465]
[1644503156857,21.26263852,107.28,107.2,34.69530465]
[1644503157256,16.22112154,107.28,107.2,34.69530465]
[1644503157456,13.9899,107.28,107.2,34.69530465]
[1644503158960,13.9899,107.28,107.2,34.44530465]
[1644503159760,14.01785683,107.3,107.2,48.43120465]
[1644503159963,11.28075683,107.31,107.2,48.43120465]
[1644503160163,0.03075683,107.32,107.22,47.58365656]
[1644503160367,25.21093097,107.33,107.22,47.83365656]
[1644503160580,25.2416878,107.33,107.22,47.83365656]
[1644503160779,25.21093097,107.33,107.22,47.83365656]
[1644503160982,11.28075683,107.34,107.22,47.83365656]
[1644503161179,13.9841,107.32,107.22,61.81775656]
[1644503161580,0.03075683,107.33,107.22,61.81775656]
[1644503161780,0.03075683,107.34,107.23,4.66]
[1644503162079,0.03075683,107.35,107.24,41.97842731]
[1644503162283,13.9792,107.36,107.25,4.66]
[1644503162481,0.03075683,107.35,107.25,18.6392]
[1644503162682,0.03075683,107.37,107.25,14.2292]
[1644503163082,2.23122154,107.36,107.26,38.35334681]
[1644503163285,3.41035124,107.35,107.26,38.60334681]
[1644503163485,17.39095124,107.35,107.26,38.60334681]
[1644503163684,24.28117278,107.35,107.26,38.35334681]
[1644503163884,35.53117278,107.35,107.26,38.35334681]
[1644503164084,4.659,107.34,107.26,38.35334681]
[1644503164288,16.89157278,107.35,107.26,38.35334681]
[1644503164487,14.66035124,107.35,107.26,38.35334681]
[1644503164986,16.89157278,107.35,107.26,38.35334681]
[1644503165185,16.89157278,107.35,107.19,4.659]
[1644503165186,13.9834,107.33,107.21,13.9847]
[1644503165391,4.66,107.32,107.15,4.66]
[1644503165587,18.17197837,107.32,107.14,11.25]
[1644503165789,2.23122154,107.31,107.15,4.662]
[1644503165988,15.94275683,107.3,107.15,4.662]
[1644503166188,21.21638099,107.29,107.16,19.14733452]
[1644503166392,15.913,107.28,107.16,19.14733452]
[1644503166589,13.9942,107.25,107.16,19.14733452]
[1644503166789,21.21638099,107.24,107.09,4.663]
[1644503166989,21.24713782,107.24,107.09,4.663]
[1644503167388,0.03075683,107.24,107.09,4.663]
[1644503167588,0.03075683,107.24,107.1,11.25]
[1644503167788,0.03075683,107.24,107.13,13.995]
[1644503167992,0.03075683,107.26,107.13,13.995]
[1644503168290,0.03075683,107.26,107.14,49.75875501]
[1644503168490,0.03075683,107.28,107.15,93.74]
[1644503168690,0.03075683,107.34,107.16,11.25]
[1644503168990,14.01375683,107.33,107.17,107.7274]
[1644503169189,13.983,107.33,107.18,15.91]
[1644503169391,42.67091061,107.32,107.19,49.8212864]
[1644503169590,0.03075683,107.32,107.2,4.66]
[1644503169790,0.03075683,107.35,107.2,22.16]
[1644503170593,43.2222305,107.35,107.21,46.47400429]
[1644503170791,13.9815,107.34,107.22,13.9833]
[1644503170990,6.24495852,107.33,107.23,48.67109874]
[1644503171490,8.47618006,107.33,107.23,48.67109874]
[1644503171691,6.24495852,107.33,107.23,48.67109874]
[1644503171889,4.66,107.32,107.19,13.9875]
[1644503172091,11.25,107.31,107.16,46.625]
[1644503172292,0.03075683,107.3,107.17,4.662]
[1644503172491,0.03075683,107.3,107.16,46.625]
[1644503172492,15.94275683,107.3,107.16,46.625]
[1644503172692,15.912,107.3,107.16,46.625]
[1644503172891,0.03075683,107.29,107.17,46.80892679]
[1644503173095,51.95164199,107.3,107.17,46.80892679]
[1644503173292,51.98239882,107.3,107.17,47.05892679]
[1644503173594,11.28075683,107.3,107.17,47.05892679]
[1644503173793,13.9892,107.29,107.17,67.04892679]
[1644503173992,13.9892,107.29,107.18,4.662]
[1644503174193,13.9892,107.29,107.18,51.2826]
[1644503174393,13.9892,107.29,107.19,38.40630151]
[1644503174691,13.57326894,107.28,107.19,38.40630151]
[1644503174892,34.45519048,107.28,107.19,38.40630151]
[1644503175292,45.70519048,107.28,107.19,38.40630151]
[1644503175693,43.47396894,107.28,107.19,38.40630151]
[1644503175891,38.81196894,107.28,107.19,38.40630151]
[1644503176091,38.81196894,107.28,107.19,38.65630151]
[1644503176293,43.47396894,107.28,107.19,38.65630151]
[1644503176692,43.47396894,107.28,107.19,38.40630151]
[1644503177393,13.9887,107.28,107.19,38.40630151]
[1644503177693,14.01735683,107.3,107.19,38.40630151]
[1644503177895,14.01735683,107.3,107.19,38.65630151]
[1644503177896,13.9866,107.3,107.19,38.65630151]
[1644503178298,2.23122154,107.29,107.15,46.6334]
[1644503178494,13.9949,107.24,107.13,8.64172379]
[1644503178695,13.9949,107.24,107.1,11.25]
[1644503178893,14.02565683,107.24,107.1,11.25]
[1644503179094,14.02565683,107.24,107.1,17.25]
[1644503179296,50.98884741,107.24,107.11,50.02716878]
[1644503179496,50.95809058,107.24,107.13,41.68420205]
[1644503179695,50.95809058,107.24,107.15,50.03517091]
[1644503179895,13.9949,107.24,107.15,50.03517091]
[1644503180095,13.9949,107.24,107.15,36.04217091]
[1644503180494,13.9916,107.26,107.15,36.04217091]
[1644503180694,2.23122154,107.25,107.16,4.663]
[1644503180899,2.23122154,107.25,107.18,13.9898]
[1644503181096,46.21338258,107.28,107.19,43.88726733]
[1644503181297,46.21338258,107.28,107.19,44.13726733]
[1644503181698,60.20228258,107.28,107.19,44.13726733]
[1644503181897,60.20228258,107.28,107.19,58.12596733]
[1644503182299,13.9889,107.28,107.19,58.12596733]
[1644503182899,14.01725683,107.3,107.19,58.12596733]
[1644503183099,25.2365,107.3,107.19,0.25]
[1644503183299,6.89322154,107.29,107.14,4.912]
[1644503183503,11.25,107.28,107.14,4.662]
[1644503183702,4.663,107.27,107.14,4.662]
[1644503183900,15.94375683,107.27,107.14,4.662]
[1644503184200,36.22864747,107.26,107.15,41.09993913]
[1644503184400,4.663,107.25,107.15,41.09993913]
[1644503184600,13.20778472,107.24,107.15,55.09373913]
[1644503185400,46.68045683,107.26,107.15,55.09373913]
[1644503185602,46.6497,107.26,107.15,55.09373913]
[1644503185801,13.9937,107.24,107.15,55.09373913]
[1644503186503,0.03075683,107.26,107.15,55.34373913]
[1644503186703,46.6389,107.28,107.16,4.663]
[1644503186906,13.992,107.25,107.15,41.09993913]
[1644503187504,52.29700582,107.25,107.15,41.09993913]
[1644503188103,52.29700582,107.25,107.15,55.34373913]
[1644503188605,52.29700582,107.25,107.15,69.20883913]
[1644503189003,52.29700582,107.25,107.15,68.95883913]
[1644503189206,52.29700582,107.25,107.15,41.09993913]
[1644503190406,52.29700582,107.25,107.15,41.34993913]
[1644503190905,52.29700582,107.25,107.15,55.34353913]
[1644503191108,52.29700582,107.25,107.15,41.34993913]
[1644503191807,68.21100582,107.25,107.15,41.34993913]
[1644503192907,63.54700582,107.25,107.15,41.34993913]
[1644503193610,65.77822736,107.25,107.1,10.664]
[1644503193808,23.68382067,107.24,107.1,6.0]
[1644503194009,13.9999,107.21,107.11,18.6635]
[1644503194209,13.9999,107.21,107.08,171.6304]
[1644503194410,13.9999,107.21,107.1,6.0]
[1644503194609,11.13142637,107.2,107.11,46.37923713]
[1644503194811,30.262954,107.23,107.11,46.37923713]
[1644503195010,11.25,107.23,107.11,46.37923713]
[1644503195211,11.25,107.23,107.11,46.62923713]
[1644503195809,18.23128459,107.2,107.11,60.62863713]
[1644503196011,18.23128459,107.2,107.11,60.37863713]
[1644503196212,13.9982,107.2,107.11,60.37863713]
[1644503197411,17.24699395,107.2,107.11,60.37863713]
[1644503197611,13.9982,107.2,107.11,60.37863713]
[1644503198314,13.9982,107.2,107.11,66.37863713]
[1644503198813,13.9982,107.2,107.11,66.62863713]
[1644503199717,24.32509518,107.2,107.11,66.62863713]
[1644503199912,24.32509518,107.2,107.11,60.62863713]
[1644503200114,13.9982,107.2,107.11,60.62863713]
[1644503200712,13.9961,107.21,107.11,60.62863713]
[1644503200913,46.68435683,107.24,107.12,4.666]
[1644503201113,40.92253982,107.23,107.13,49.03530526]
[1644503201315,40.92253982,107.23,107.13,49.28530526]
[1644503201517,45.58753982,107.23,107.13,49.28530526]
[1644503202015,13.9949,107.22,107.13,49.28530526]
[1644503203214,13.9949,107.22,107.13,49.03530526]
[1644503203615,43.25363355,107.21,107.13,49.03530526]
[1644503203817,13.9949,107.22,107.13,49.03530526]
[1644503204715,48.54963301,107.21,107.13,49.28530526]
[1644503204918,13.9974,107.21,107.13,49.28530526]
[1644503206720,13.9946,107.22,107.13,55.28530526]